bitfinex-derivatives/quotes_BNBF0:USTF0_20250904
["timestamp","ask_amount","ask_price","bid_price","bid_amount"]
[1756993552497,0.20508408,848.54,847.88,0.79428326]
[1756993552698,0.20508408,848.54,847.89,0.79428326]
[1756993552894,0.20508408,848.54,847.88,0.79428326]
[1756993553097,0.92549491,848.54,847.88,0.79428326]
[1756993553398,1.51377611,848.53,847.86,0.79428326]
[1756993553598,0.72041083,848.52,847.86,0.79428326]
[1756993553998,1.51377611,848.52,847.86,0.79428326]
[1756993554294,0.72041083,848.51,847.86,0.79428326]
[1756993555094,0.72023401,848.51,847.86,0.79428326]
[1756993556699,0.72023401,848.51,847.83,0.79428326]
[1756993556999,0.72023401,848.53,847.83,0.79428326]
[1756993557194,0.20508408,848.54,847.83,0.79428326]
[1756993561402,0.20508408,848.54,847.82,0.79428326]
[1756993561698,0.79336528,848.53,847.78,0.79428326]
[1756993561902,0.72023401,848.52,847.76,0.79428326]
[1756993562198,1.5139269,848.53,847.76,0.79428326]
[1756993562499,0.72056162,848.52,847.77,0.79428326]
[1756993563298,1.5139269,848.52,847.77,0.79428326]
[1756993563496,0.72056162,848.51,847.77,0.79428326]
[1756993565503,0.7205864,848.51,847.77,0.79428326]
[1756993566598,0.79336528,848.5,847.79,0.79428326]
[1756993566798,0.20508408,848.54,847.01,0.20509133]
[1756993566799,1.51395168,848.49,847.74,0.79428326]
[1756993567098,0.7205864,848.48,847.74,0.79428326]
[1756993568602,0.7205864,848.49,847.74,0.79428326]
[1756993568802,0.79336528,848.48,847.72,0.79428326]
[1756993569000,0.7205864,848.47,847.72,0.79428326]
[1756993569702,1.51395168,848.47,847.73,0.79428326]
[1756993569902,0.79336528,848.45,847.74,0.79428326]
[1756993570099,0.7205864,848.44,847.74,0.79428326]
[1756993571806,0.79336528,848.42,847.7,0.79428326]
[1756993572006,0.7205864,848.41,847.66,0.79428326]
[1756993572301,0.7205864,848.43,847.66,0.79428326]
[1756993572501,0.7205864,848.43,847.67,0.79428326]
[1756993572703,0.7205864,848.44,847.67,0.79428326]
[1756993573607,0.7205864,848.45,847.67,0.79428326]
[1756993573808,1.51395168,848.45,847.67,0.79428326]
[1756993574003,0.7205864,848.44,847.67,0.79428326]
[1756993574204,0.7205864,848.44,847.68,0.79428326]
[1756993574408,1.51395168,848.44,847.67,0.79428326]
[1756993574704,0.7205864,848.43,847.66,0.79428326]
[1756993574908,0.79336528,848.41,847.61,0.79428326]
[1756993575104,0.7205864,848.4,847.61,0.79428326]
[1756993576107,0.71985281,848.4,847.61,0.79428326]
[1756993576410,0.71985281,848.4,847.6,0.79428326]
[1756993576611,0.71985281,848.41,847.6,0.79428326]
[1756993576812,0.71985281,848.41,847.59,0.79428326]
[1756993577011,0.71985281,848.43,847.59,0.79428326]
[1756993577311,0.71985281,848.43,847.58,0.79428326]
[1756993577510,0.71985281,848.44,847.58,0.79428326]
[1756993578413,0.71985281,848.44,847.57,0.79428326]
[1756993578712,0.79336528,848.43,847.59,0.79428326]
[1756993578912,0.71985281,848.42,847.59,0.79428326]
[1756993579514,0.71985281,848.43,847.58,0.79428326]
[1756993579810,0.71985281,848.43,847.55,0.79428326]
[1756993580013,0.71985281,848.53,847.53,0.79428326]
[1756993580209,0.20508408,848.54,847.53,0.79428326]
[1756993582213,0.20508408,848.54,847.54,0.79428326]
[1756993582408,0.20508408,848.54,847.53,0.79428326]
[1756993583314,0.20508408,848.54,847.54,0.79428326]
[1756993585414,0.20508408,848.54,847.53,0.79428326]
[1756993585714,0.20508408,848.54,847.57,0.79428326]
[1756993586714,0.20508408,848.54,847.56,0.79428326]
[1756993587610,0.92493689,848.54,847.56,0.79428326]
[1756993587814,0.71985281,848.53,847.56,0.79428326]
[1756993588114,0.79336528,848.5,847.63,0.79428326]
[1756993588411,0.79336528,848.46,847.59,0.79428326]
[1756993588716,0.71985281,848.45,847.59,0.79428326]
[1756993589018,0.79336528,848.42,847.54,0.79428326]
[1756993589312,0.71985281,848.41,847.54,0.79428326]
[1756993591311,0.71985281,848.41,847.53,0.79428326]
[1756993591515,0.71985281,848.42,847.53,0.79428326]
[1756993592015,0.71985281,848.42,847.5,0.79428326]
[1756993592515,0.71985281,848.43,847.5,0.79428326]
[1756993593013,0.79336528,848.42,847.49,0.79428326]
[1756993593213,0.79336528,848.4,847.47,0.79428326]
[1756993593417,1.51135937,848.39,847.47,0.79428326]
[1756993593615,0.71799409,848.38,847.47,0.79428326]
[1756993594115,0.71799409,848.38,847.23,0.79428326]
[1756993594416,1.71644345,848.54,847.21,0.79428326]
[1756993594613,1.51135937,848.53,847.21,0.79428326]
[1756993594817,0.79336528,848.51,847.19,0.79428326]
[1756993595016,0.71799409,848.5,847.19,0.79428326]
[1756993595414,0.71799409,848.5,847.18,0.79428326]
[1756993595618,0.71799409,848.51,847.18,0.79428326]
[1756993596520,0.79336528,848.47,847.13,0.79428326]
[1756993596719,0.71799409,848.46,847.13,0.79428326]
[1756993597320,0.71799409,848.46,847.12,0.79428326]
[1756993597521,1.51135937,848.47,847.12,0.79428326]
[1756993597718,0.71799409,848.46,847.12,0.79428326]
[1756993598318,0.71799409,848.46,847.11,0.79428326]
[1756993598615,1.51135937,848.47,847.11,0.79428326]
[1756993598819,0.71799409,848.46,847.11,0.79428326]
[1756993599517,0.71799409,848.47,847.1,0.79428326]
[1756993599921,0.71799409,848.47,847.23,0.79428326]
[1756993599922,0.79336528,848.26,847.23,0.79428326]
[1756993600119,0.79336528,848.21,847.18,0.79428326]
[1756993600322,0.71799409,848.25,846.87,0.20523345]
[1756993600323,0.71799409,848.2,847.17,0.79428326]
[1756993600520,0.71799409,848.21,847.17,0.79428326]
[1756993600917,1.51135937,848.21,847.18,0.79428326]
[1756993601218,0.79336528,848.19,847.15,0.79428326]
[1756993601522,0.71799409,848.18,847.14,0.79428326]
[1756993601818,0.71799409,848.19,847.14,0.79428326]
[1756993602421,0.71799409,848.19,846.87,0.20523345]
[1756993602422,0.71799409,848.19,847.13,0.79428326]
[1756993602621,0.71799409,848.2,847.13,0.79428326]
[1756993603222,1.51135937,848.2,847.12,0.79428326]
[1756993603422,0.71799409,848.19,847.12,0.79428326]
[1756993603720,0.71799409,848.2,847.12,0.79428326]
[1756993604323,1.51135937,848.2,847.12,0.79428326]
[1756993604620,0.71799409,848.19,847.11,0.79428326]
[1756993604822,0.71799409,848.2,847.11,0.79428326]
[1756993605319,0.71799409,848.2,847.1,0.79428326]
[1756993606220,0.71799409,848.2,847.21,0.79428326]
[1756993606425,0.71799409,848.24,847.22,0.79428326]
[1756993606626,0.71799409,848.24,847.07,0.79428326]
[1756993606921,0.20508408,848.54,847.09,0.79428326]
[1756993606922,0.71799409,848.46,847.09,0.79428326]
[1756993607119,0.71799409,848.47,847.09,0.79428326]
[1756993607619,0.71799409,848.47,847.13,0.79428326]
[1756993607826,1.51135937,848.51,847.12,0.79428326]
[1756993608026,0.71799409,848.5,847.13,0.79428326]
[1756993608326,0.71799409,848.51,847.13,0.79428326]
[1756993609326,0.71799409,848.51,847.24,0.79428326]
[1756993609527,0.71799409,848.53,847.24,0.79428326]
[1756993609726,0.20508408,848.54,847.24,0.79428326]
[1756993610126,0.20508408,848.54,847.25,0.79428326]
[1756993610327,0.79336528,848.44,847.38,0.79428326]
[1756993610526,0.71799409,848.43,847.38,0.79428326]
[1756993611325,0.71799409,848.43,847.4,0.79428326]
[1756993611624,1.51135937,848.43,847.39,0.79428326]
[1756993611925,0.71799409,848.42,847.39,0.79428326]
[1756993612127,0.71799409,848.42,847.4,0.79428326]
[1756993612128,1.51135937,848.42,847.4,0.79428326]
[1756993612328,0.71799409,848.41,847.4,0.79428326]
[1756993612526,1.51135937,848.41,847.41,0.79428326]
[1756993612728,0.71799409,848.4,847.41,0.79428326]
[1756993613529,1.51135937,848.4,847.4,0.79428326]
[1756993613730,0.71799409,848.39,847.4,0.79428326]
[1756993613929,1.51135937,848.39,847.39,0.79428326]
[1756993614131,0.71799409,848.38,847.39,0.79428326]
[1756993615532,0.79336528,848.36,847.42,0.79428326]
[1756993615730,0.79336528,848.34,847.43,0.79428326]
[1756993615933,0.71799409,848.33,847.43,0.79428326]
[1756993616936,0.71799409,848.33,847.44,0.79428326]
[1756993617136,0.71799409,848.34,847.44,0.79428326]
[1756993617334,0.71799409,848.34,847.45,0.79428326]
[1756993618239,0.71799409,848.35,847.45,0.79428326]
[1756993619339,0.71799409,848.35,847.46,0.79428326]
[1756993620035,0.71799409,848.35,847.45,0.79428326]
[1756993620234,1.51135937,848.37,847.45,0.79428326]
[1756993620433,0.71799409,848.36,847.46,0.79428326]
[1756993620637,0.71799409,848.37,847.46,0.79428326]
[1756993621334,1.51135937,848.37,847.47,0.79428326]
[1756993621536,0.71799409,848.36,847.47,0.79428326]
[1756993622840,1.51135937,848.36,847.47,0.79428326]
[1756993623036,0.71799409,848.35,847.47,0.79428326]
[1756993623442,1.51135937,848.35,847.47,0.79428326]
[1756993623642,0.71799409,848.34,847.47,0.79428326]
[1756993624438,0.71799409,848.34,847.48,0.79428326]
[1756993625040,1.51135937,848.35,847.48,0.79428326]
[1756993625238,0.71799409,848.34,847.48,0.79428326]
[1756993625838,0.71799409,848.34,847.47,0.79428326]
[1756993626039,0.79336528,848.31,847.41,0.79428326]
[1756993626237,1.51135937,848.3,847.41,0.79428326]
[1756993626437,1.51135937,848.29,847.41,0.79428326]
[1756993626741,0.71799409,848.28,847.41,0.79428326]
[1756993626941,0.71799409,848.28,847.36,0.79428326]
[1756993627437,0.79336528,848.25,847.33,0.79428326]
[1756993627642,0.71799409,848.24,847.33,0.79428326]
[1756993629537,0.71799409,848.24,847.34,0.79428326]
[1756993629741,0.71799409,848.24,847.33,0.79428326]
[1756993630340,0.71799409,848.24,847.34,0.79428326]
[1756993632243,1.51135937,848.24,847.33,0.79428326]
[1756993632540,0.71799409,848.23,847.33,0.79428326]
[1756993632744,1.51135937,848.23,847.34,0.79428326]
[1756993633044,0.71799409,848.22,847.34,0.79428326]
[1756993633343,0.71799409,848.22,847.31,0.79428326]
[1756993633643,0.79336528,848.24,847.33,0.79428326]
[1756993633944,0.79336528,848.2,847.27,0.79428326]
[1756993634143,0.79336528,848.18,847.25,0.79428326]
[1756993634439,0.71799409,848.17,847.25,0.79428326]
[1756993634845,0.71799409,848.17,847.05,1.0531379]
[1756993634846,0.71799409,848.17,847.24,0.79428326]
[1756993635151,0.79336528,848.16,847.22,0.79428326]
[1756993635349,0.71799409,848.15,847.22,0.79428326]
[1756993636247,0.79336528,848.13,847.18,0.79428326]
[1756993636450,0.79336528,848.06,847.21,0.79428326]
[1756993636746,0.71799409,848.05,847.21,0.79428326]
[1756993636950,0.71799409,848.05,847.2,0.79428326]
[1756993637251,0.71799409,848.07,847.19,0.79428326]
[1756993637445,0.79336528,848.06,847.21,0.79428326]
[1756993637645,0.71799409,848.05,847.21,0.79428326]
[1756993638352,0.71799409,848.05,847.2,0.79428326]
[1756993639555,1.51135937,848.05,847.15,0.79428326]
[1756993639849,0.71799409,848.04,847.15,0.79428326]
[1756993640153,1.51135937,848.04,847.15,0.79428326]
[1756993640452,0.71799409,848.03,847.15,0.79428326]
[1756993641549,1.51135937,848.04,847.15,0.79428326]
[1756993641755,0.71799409,848.03,847.15,0.79428326]
[1756993642050,0.71799409,848.03,847.12,0.79428326]
[1756993642248,0.71799409,848.03,846.73,1.5797069]
[1756993642249,0.71799409,848.07,847.11,0.79428326]
[1756993642451,0.20526493,847.81,847.11,0.79428326]
[1756993645852,0.20526493,847.81,847.14,0.79428326]
[1756993646055,0.20526493,847.81,847.15,0.79428326]
[1756993646552,0.20526493,847.81,847.27,0.79428326]
[1756993646851,0.71799409,848.05,847.26,0.79428326]
[1756993647056,0.71901224,848.18,847.28,0.79428326]
[1756993647352,0.20522619,847.96,847.29,0.79428326]
[1756993647850,0.20522619,847.96,847.28,0.79428326]
[1756993648052,0.20522619,847.96,847.27,0.79428326]
[1756993648553,0.20522619,847.96,847.28,0.79428326]
[1756993649355,0.20522619,847.96,847.27,0.79428326]
[1756993649553,0.20522619,847.96,847.23,0.79428326]
[1756993649957,0.20522619,847.96,847.26,0.79428326]
[1756993651054,0.20522619,847.96,847.25,0.79428326]
[1756993651255,0.20522619,847.96,847.21,0.79428326]
[1756993651960,0.20522619,847.96,847.18,0.79428326]
[1756993652161,0.20522619,847.96,846.99,1.0531379]
[1756993652162,0.20522619,847.96,847.16,0.79428326]
[1756993652458,0.20522619,847.96,847.15,0.79428326]
[1756993652757,0.20522619,847.96,847.13,0.79428326]
[1756993652955,0.20522619,847.96,847.14,0.79428326]
[1756993653559,0.92423843,847.96,847.12,0.79428326]
[1756993653763,0.71901224,847.95,847.12,0.79428326]
[1756993653964,0.20522619,847.96,847.12,0.79428326]
[1756993654464,0.20522619,847.96,847.11,0.79428326]
[1756993654660,0.92423843,847.96,847.11,0.79428326]
[1756993654863,0.71901224,847.95,847.08,0.79428326]
[1756993655163,0.20522619,847.96,847.08,0.79428326]
[1756993655361,0.20522619,847.96,847.07,0.79428326]
[1756993657265,0.20522619,847.96,847.08,0.79428326]
[1756993657765,0.20522619,847.96,846.77,0.79428326]
[1756993658265,0.20522619,847.96,846.76,0.79428326]
[1756993658861,0.20522619,847.96,846.78,0.79428326]
[1756993660266,0.20522619,847.96,846.77,0.79428326]
[1756993661365,0.20522619,847.96,846.76,0.79428326]
[1756993661969,0.20522619,847.96,846.77,0.7921573]
[1756993662269,0.20522619,847.96,846.76,0.7921573]
[1756993662667,0.20522619,847.96,846.78,0.7921573]
[1756993663368,0.20522619,847.96,846.79,0.7921573]
[1756993663864,0.20522619,847.96,846.83,0.7921573]
[1756993664268,0.20522619,847.96,846.82,0.7921573]
[1756993665471,0.20522619,847.96,846.81,0.7921573]
[1756993666571,0.20522619,847.96,846.8,0.7921573]
[1756993666772,0.20522619,847.96,846.84,0.7921573]
[1756993667271,0.20522619,847.96,846.86,0.7921573]
[1756993667471,0.79052889,847.94,846.88,0.7921573]
[1756993667668,0.71901224,847.93,846.88,0.7921573]
[1756993667868,0.79052889,847.92,846.89,0.7921573]
[1756993668169,0.71901224,847.91,846.89,0.7921573]
[1756993668573,0.71901224,847.92,846.89,0.7921573]
[1756993668772,1.50954113,847.92,846.89,0.7921573]
[1756993668970,0.71901224,847.91,846.89,0.7921573]
[1756993669474,0.71901224,847.92,846.89,0.7921573]
[1756993670374,1.50954113,847.92,846.89,0.7921573]
[1756993670669,0.71901224,847.91,846.89,0.7921573]
[1756993672371,0.71901224,847.91,846.72,1.0531379]
[1756993672372,0.71901224,847.91,846.88,0.7921573]
[1756993672576,0.71901224,847.92,846.89,0.7921573]
[1756993673575,0.71671052,847.92,846.89,0.7921573]
[1756993673876,0.71671052,847.92,846.9,0.7921573]
[1756993674075,0.71671052,847.95,846.91,0.7921573]
[1756993674274,0.92193671,847.96,846.9,0.7921573]
[1756993674472,0.92193671,847.96,846.91,0.7921573]
[1756993674873,0.71671052,847.95,846.91,0.7921573]
[1756993675075,0.20522619,847.96,846.91,0.7921573]
[1756993675575,0.20522619,847.96,846.67,0.20529096]
[1756993675576,0.20522619,847.96,846.92,0.7921573]
[1756993675775,0.20522619,847.96,846.67,0.20529096]
[1756993675776,0.20522619,847.96,846.97,0.7921573]
[1756993676376,0.20522619,847.96,846.98,0.7921573]
[1756993676677,0.99575508,847.96,847.0,0.7921573]
[1756993676878,0.71671052,847.95,847.0,0.7921573]
[1756993677578,0.71671052,847.95,847.01,0.7921573]
[1756993678075,1.50723941,847.95,847.01,0.7921573]
[1756993678277,1.50723941,847.95,846.87,1.0531379]
[1756993678278,0.71671052,847.94,847.02,0.7921573]
[1756993679273,1.50723941,847.94,847.02,0.7921573]
[1756993679573,0.71671052,847.93,847.02,0.7921573]
[1756993680773,0.71671052,847.93,847.03,0.7921573]
[1756993681278,0.71671052,847.93,847.04,0.7921573]
[1756993681279,1.50723941,847.93,847.04,0.7921573]
[1756993681478,0.71671052,847.92,847.04,0.7921573]
[1756993681879,0.71671052,847.92,847.03,0.7921573]
[1756993682079,0.71671052,847.94,847.03,0.7921573]
[1756993682378,1.50723941,847.94,847.04,0.7921573]
[1756993682576,0.71671052,847.93,847.04,0.7921573]
[1756993682778,0.71671052,847.93,847.03,0.7921573]
[1756993683078,0.71671052,847.94,847.03,0.7921573]
[1756993683278,0.71671052,847.94,846.72,1.5797069]
[1756993683279,1.50723941,847.94,847.04,0.7921573]
[1756993683581,0.71671052,847.93,847.03,0.7921573]
[1756993683783,0.71671052,847.95,847.03,0.7921573]
[1756993684279,1.50723941,847.95,847.04,0.7921573]
[1756993684577,0.71671052,847.94,847.04,0.7921573]
[1756993685081,0.79052889,847.93,847.02,0.7921573]
[1756993685282,1.50723941,847.92,847.03,0.7921573]
[1756993685477,1.50723941,847.91,847.04,0.7921573]
[1756993685682,1.50723941,847.9,846.99,0.7921573]
[1756993685882,0.71671052,847.89,846.99,0.7921573]
[1756993686283,1.50723941,847.89,847.0,0.7921573]
[1756993686585,0.71671052,847.88,847.0,0.7921573]
[1756993686785,1.50723941,847.88,846.98,0.7921573]
[1756993686986,0.71671052,847.87,846.98,0.7921573]
[1756993687185,0.79052889,847.86,846.97,0.7921573]
[1756993687485,0.71671052,847.85,846.97,0.7921573]
[1756993688186,0.79052889,847.83,846.95,0.7921573]
[1756993688381,0.71671052,847.82,846.95,0.7921573]
[1756993688783,0.71671052,847.82,846.94,0.7921573]
[1756993688984,0.71671052,847.83,846.94,0.7921573]
[1756993689383,0.71671052,847.84,846.94,0.7921573]
[1756993690187,1.50723941,847.84,846.94,0.7921573]
[1756993690390,1.50723941,847.83,846.95,0.7921573]
[1756993690588,0.71671052,847.82,846.95,0.7921573]
[1756993691386,0.71671052,847.82,846.96,0.7921573]
[1756993691790,0.79052889,847.81,846.97,0.7921573]
[1756993691991,0.20522619,847.96,846.67,0.20529096]
[1756993691992,1.50723941,847.8,846.95,0.7921573]
[1756993692291,0.20522619,847.96,846.78,1.0531379]
[1756993692292,1.50723941,847.79,846.96,0.7921573]
[1756993692487,0.79052889,847.75,846.89,0.7921573]
[1756993692691,1.50723941,847.74,846.89,0.7921573]
[1756993692893,0.71671052,847.73,846.89,0.7921573]
[1756993693290,1.50723941,847.73,846.89,0.7921573]
[1756993693591,0.71671052,847.72,846.89,0.7921573]
[1756993693787,0.71671052,847.73,846.89,0.7921573]
[1756993695189,0.79052889,847.72,846.9,0.7921573]
[1756993695393,0.79052889,847.7,846.89,0.7921573]
[1756993695594,1.50723941,847.69,846.89,0.7921573]
[1756993695890,0.71671052,847.68,846.89,0.7921573]
[1756993696790,1.50723941,847.68,846.89,0.7921573]
[1756993696995,1.50723941,847.67,846.86,0.7921573]
[1756993697190,0.71671052,847.66,846.86,0.7921573]
[1756993697394,0.79052889,847.64,846.84,0.7921573]
[1756993697589,0.71671052,847.63,846.83,0.7921573]
[1756993697889,0.71671052,847.64,846.83,0.7921573]
[1756993698093,1.50723941,847.64,846.83,0.7921573]
[1756993698289,0.71671052,847.63,846.84,0.7921573]
[1756993698589,0.20522619,847.96,846.84,0.7921573]
[1756993698590,0.71671052,847.64,846.84,0.7921573]
[1756993698791,0.71671052,847.65,846.84,0.7921573]
[1756993699591,0.71671052,847.66,846.84,0.7921573]
[1756993700391,0.71671052,847.66,846.83,0.7921573]
[1756993701492,1.50723941,847.66,846.84,0.7921573]
[1756993701695,0.71671052,847.65,846.84,0.7921573]
[1756993703191,0.71671052,847.65,846.83,0.7921573]
[1756993703491,0.71671052,847.66,846.83,0.7921573]
[1756993704093,0.79052889,847.64,846.77,0.7921573]
[1756993704294,0.71671052,847.63,846.76,0.7921573]
[1756993704694,0.71671052,847.63,846.59,1.0531379]
[1756993704995,0.79078307,847.64,846.76,0.79307453]
[1756993705198,0.20522619,847.96,845.73,2.6328449]
[1756993705199,0.71671052,847.63,846.73,0.79307453]
[1756993705498,0.79078307,847.62,846.65,0.79307453]
[1756993705697,0.79078307,847.62,846.36,0.20537032]
[1756993705698,0.71671052,847.61,846.64,0.79307453]
[1756993705996,0.71671052,847.63,846.64,0.79307453]
[1756993706193,0.79078307,847.65,846.64,0.79307453]
[1756993706194,0.71671052,847.64,846.64,0.79307453]
[1756993706796,0.71671052,847.65,846.64,0.79307453]
[1756993706998,0.71671052,847.65,846.63,0.79307453]
[1756993707196,0.71671052,847.66,846.63,0.79307453]
[1756993708303,1.50749359,847.66,846.64,0.79307453]
[1756993708603,0.71671052,847.65,846.64,0.79307453]
[1756993708802,0.71671052,847.66,846.64,0.79307453]
[1756993709205,0.71671052,847.66,846.63,0.79307453]
[1756993709403,0.71671052,847.67,846.63,0.79307453]
[1756993710208,1.50749359,847.67,846.64,0.79307453]
[1756993710402,0.20522619,847.96,846.63,0.79307453]
[1756993710403,0.71671052,847.66,846.63,0.79307453]
[1756993710607,0.71671052,847.67,846.63,0.79307453]
[1756993712002,1.50749359,847.67,846.63,0.79307453]
[1756993712206,1.50749359,847.66,846.63,0.79307453]
[1756993712503,0.79078307,847.63,846.64,0.79307453]
[1756993712707,0.79078307,847.59,846.6,0.79307453]
[1756993712909,0.71671052,847.58,846.6,0.79307453]
[1756993713205,0.79078307,847.55,846.62,0.79307453]
[1756993713412,0.79078307,847.52,846.63,0.79307453]
[1756993713605,0.79078307,847.5,846.61,0.79307453]
[1756993713812,0.20522619,847.96,846.6,0.79307453]
[1756993713813,1.50749359,847.49,846.6,0.79307453]
[1756993714008,0.71671052,847.48,846.6,0.79307453]
[1756993714405,0.71671052,847.48,846.55,0.79307453]
[1756993714610,0.71671052,847.55,846.55,0.79307453]
[1756993714806,0.71671052,847.55,846.54,0.79307453]
[1756993715007,0.71671052,847.55,846.46,0.79307453]
[1756993715207,0.71671052,847.58,846.46,0.79307453]
[1756993715410,0.71671052,847.58,846.45,0.79307453]
[1756993716508,1.50749359,847.58,846.46,0.79307453]
[1756993716708,0.71671052,847.57,846.38,0.79307453]
[1756993716912,0.79078307,847.53,846.29,0.79307453]
[1756993717109,1.50749359,847.52,846.29,0.79307453]
[1756993717308,0.71671052,847.51,846.29,0.79307453]
[1756993717612,0.71671052,847.53,846.29,0.79307453]
[1756993718310,1.50749359,847.53,846.3,0.79307453]
[1756993718513,0.71671052,847.52,846.26,0.79307453]
[1756993718809,0.71671052,847.54,846.26,0.79307453]
[1756993719013,0.79078307,847.52,846.28,0.79307453]
[1756993719213,0.71671052,847.51,846.28,0.79307453]
[1756993719412,0.71671052,847.51,846.27,0.79307453]
[1756993719710,0.71671052,847.52,846.27,0.79307453]
[1756993720417,0.71671052,847.52,846.24,0.79307453]
[1756993721314,0.71671052,847.52,846.16,0.20543154]
[1756993721315,0.71671052,847.52,846.23,0.79307453]
[1756993721513,0.71671052,847.53,846.23,0.79307453]
[1756993722318,0.71671052,847.53,846.22,0.79307453]
[1756993722518,0.71671052,847.53,846.23,0.79307453]
[1756993722519,0.79078307,847.5,846.23,0.79307453]
[1756993722720,0.71671052,847.49,846.23,0.79307453]
[1756993722919,0.71671052,847.5,846.23,0.79307453]
[1756993723320,1.50749359,847.5,846.23,0.79307453]
[1756993723518,0.71671052,847.49,846.23,0.79307453]
[1756993723821,0.71671052,847.51,846.22,0.79307453]
[1756993724021,0.71671052,847.51,846.21,0.79307453]
[1756993724221,0.71671052,847.52,846.21,0.79307453]
[1756993724518,0.71671052,847.52,846.2,0.79307453]
[1756993725420,0.71671052,847.52,846.19,0.79307453]
[1756993725620,0.71671052,847.53,846.19,0.79307453]
[1756993725820,1.50749359,847.53,846.19,0.79307453]
[1756993726022,0.71671052,847.52,846.19,0.79307453]
[1756993726521,0.71671052,847.52,846.18,0.79307453]
[1756993726722,0.71671052,847.53,846.18,0.79307453]
[1756993727219,0.79078307,847.54,846.18,0.79307453]
[1756993727418,0.71470406,847.53,846.17,0.79307453]
[1756993727825,0.71470406,847.53,846.16,0.79307453]
[1756993728419,1.50548713,847.53,846.17,0.79307453]
[1756993728620,0.71470406,847.52,846.17,0.79307453]
[1756993729123,1.50548713,847.52,846.17,0.79307453]
[1756993729327,0.71470406,847.51,846.16,0.79307453]
[1756993729626,0.20522619,847.96,846.16,0.79307453]
[1756993729627,1.50548713,847.52,846.16,0.79307453]
[1756993729926,0.71470406,847.51,846.16,0.79307453]
[1756993731422,0.71470406,847.52,846.16,0.79307453]
[1756993732323,0.71470406,847.52,846.15,0.79307453]
[1756993733223,0.71470406,847.53,846.15,0.79307453]
[1756993733430,0.71470406,847.53,846.13,0.79307453]
[1756993733627,0.78706849,847.51,846.16,0.79015883]
[1756993733828,0.71470406,847.5,846.17,0.79015883]
[1756993734028,0.78706849,847.48,846.18,0.79015883]
[1756993734228,0.71470406,847.47,846.18,0.79015883]
[1756993735229,1.50177255,847.47,846.17,0.79015883]
[1756993735528,0.71470406,847.46,846.16,0.79015883]
[1756993735727,0.78706849,847.42,846.1,0.79015883]
[1756993735926,0.71470406,847.41,846.1,0.79015883]
[1756993736524,1.50177255,847.41,846.09,0.79015883]
[1756993736729,0.78706849,847.36,846.03,0.79015883]
[1756993736929,0.71470406,847.35,846.03,0.79015883]
[1756993737229,0.71470406,847.35,846.04,0.79015883]
[1756993737429,0.78706849,847.33,846.04,0.79015883]
[1756993737626,0.78706849,847.3,846.03,0.79015883]
[1756993737829,0.71470406,847.29,846.02,0.79015883]
[1756993738130,0.78706849,847.3,846.02,0.79015883]
[1756993738428,0.71381432,847.29,846.02,0.79015883]
[1756993738631,0.71381432,847.29,846.01,0.79015883]
[1756993738827,0.71387448,847.29,846.01,0.79015883]
[1756993739327,1.5009025,847.29,846.02,0.79015883]
[1756993739532,0.71383401,847.28,846.01,0.79015883]
[1756993739832,0.71383401,847.29,845.99,0.79015883]
[1756993740032,0.71383401,847.31,845.99,0.79015883]
[1756993741230,0.71383401,847.31,846.0,0.79015883]
[1756993741434,1.5009025,847.33,846.01,0.79015883]
[1756993741634,0.71383401,847.32,846.0,0.79015883]
[1756993741934,0.71383401,847.32,846.01,0.79015883]
[1756993742434,1.5009025,847.32,846.01,0.79015883]
[1756993742633,0.71383401,847.31,846.01,0.79015883]
[1756993743237,1.5009025,847.31,846.02,0.79015883]
[1756993743433,0.71383401,847.3,846.03,0.79015883]
[1756993744335,1.5009025,847.3,846.03,0.79015883]
[1756993744533,0.71383401,847.29,846.03,0.79015883]
[1756993745138,0.71383401,847.3,846.03,0.79015883]
[1756993745339,0.71383401,847.3,846.02,0.79015883]
[1756993745536,0.71383401,847.34,846.05,0.79015883]
[1756993745740,0.71383401,847.36,846.05,0.79015883]
[1756993746538,0.78706849,847.35,846.07,0.79015883]
[1756993746738,0.71383401,847.34,846.07,0.79015883]
[1756993747338,0.71383401,847.34,846.08,0.79015883]
[1756993747538,0.71383401,847.35,846.07,0.79015883]
[1756993747739,0.71383401,847.36,846.32,0.79015883]
[1756993747938,0.71383401,847.45,846.43,0.79015883]
[1756993748140,0.71383401,847.58,846.44,0.79015883]
[1756993748343,1.5009025,847.59,846.45,0.79015883]
[1756993748640,0.71383401,847.58,846.45,0.79015883]
[1756993748941,0.71383401,847.58,846.46,0.79015883]
[1756993749143,0.71383401,847.59,846.45,0.79015883]
[1756993749540,1.5009025,847.59,846.44,0.79015883]
[1756993749744,0.71383401,847.58,846.45,0.79015883]
[1756993750444,1.5009025,847.58,846.46,0.79015883]
[1756993750744,0.71383401,847.57,846.46,0.79015883]
[1756993751542,1.5009025,847.57,846.47,0.79015883]
[1756993751744,0.71383401,847.56,846.47,0.79015883]
[1756993752442,0.78706849,847.55,846.46,0.79015883]
[1756993752646,0.71383401,847.54,846.46,0.79015883]
[1756993752946,0.71383401,847.54,846.44,0.79015883]
[1756993753143,0.71383401,847.56,846.44,0.79015883]
[1756993753444,0.71383401,847.56,846.45,0.79015883]
[1756993753445,1.5009025,847.56,846.45,0.79015883]
[1756993753642,0.71383401,847.55,846.46,0.79015883]